Cogmind - Beta 15 @@@ ROGUE MODE // 2025.05.07 @ 20:39:54 Player: MadBadger Result: Destroyed by YE-IVI(R) with Subdweller Beam Cannon Performance ------------- Evolutions (0) 0 Regions Visited (2) 400 Robots Destroyed (17) 85 Value Destroyed (415) 415 Prototype IDs (11) 220 Alien Tech Used (0) 0 Bonus (0) 0 TOTAL SCORE: 1120 Bonus ------- None Cogmind --------- Core Integrity 0/250 Matter 222/300 Energy 80/100 System Corruption 4% Temperature Cool (9) Movement Walking (260) Ox2 Location -10/Subcaves Parts ------- > --- POWER (1) -------- (None) > --- PROPULSION (2) --- Aluminum Leg Aluminum Leg > --- UTILITY (2) ------ High-capacity Storage Unit Structural Scanner > --- WEAPON (2) ------- Medium Laser Medium Laser > --- INVENTORY (20) --- Aluminum Leg Arachnoskeleton Heat Sink EM Pulse Gun Assault Rifle Datajack Datajack Mining Laser Peak State ------------ > --- POWER ------------ Light Ion Engine > --- PROPULSION ------- Aluminum Leg Aluminum Leg > --- UTILITY ---------- High-capacity Storage Unit Structural Scanner > --- WEAPON ----------- Beam Cannon Mining Laser > --- INVENTORY -------- Light Ion Engine Aluminum Leg Aluminum Leg Aluminum Leg Arachnoskeleton Heat Sink EM Pulse Gun Medium Laser Medium Laser Assault Rifle Grenade Launcher Datajack Datajack [Rating: 10] Favorites ----------- Power Light Ion Engine Engine Light Ion Engine Propulsion Aluminum Leg Leg Aluminum Leg Utility Structural Scanner Device Structural Scanner Storage High-capacity Storage Unit Weapon Medium Laser Energy Gun Medium Laser Energy Cannon Beam Cannon Ballistic Gun Assault Rifle Launcher Grenade Launcher Special Weapon Mining Laser Special Melee Weapon Datajack Build | -11 -10 -10 ------- Run | Yrd Mat Sub Slots Evolved . | . . . Power . | . . . Propulsion . | . . . Utility . | . . . Weapon . | . . . Parts Attached 22 | 8 6 8 Power 4 | 2 . 2 Engine 4 | 2 . 2 Core . | . . . Reactor . | . . . Propulsion 5 | 2 1 2 Treads . | . . . Leg 5 | 2 1 2 Wheel . | . . . Hover . | . . . Flight . | . . . Utility 3 | 1 2 . Device 1 | . 1 . Storage 2 | 1 1 . Processor . | . . . Hackware . | . . . Protection . | . . . Artifact . | . . . Weapon 10 | 3 3 4 Energy Gun 4 | 3 . 1 Energy Cannon 1 | . 1 . Ballistic Gun 1 | . . 1 Ballistic Cannon . | . . . Launcher 1 | . . 1 Special Weapon 1 | . . 1 Impact Weapon . | . . . Slashing Weapon . | . . . Piercing Weapon . | . . . Special Melee Weapon 2 | . 2 . Unidentified Prototypes . | . . . Parts Lost 8 | . 1 7 Power 3 | . . 3 Propulsion 2 | . . 2 Utility . | . . . Weapon 3 | . 1 2 Highest Loss Streak 3 | . 1 3 To Critical Strikes . | . . . Average Backups 9 | 1 7 10 Power . | . . . Propulsion 2 | . 1 3 Utility . | . . 1 Weapon 3 | . 3 3 Tool/Special . | . . . Unused Backups 3 | . . 3 Power . | . . . Propulsion 2 | . . 2 Utility 1 | . . 1 Weapon . | . . . Tool/Special . | . . . Average Slot Usage (%) 98 | . 98 98 Engine 13 | . 13 13 Leg 27 | . 28 27 Device 13 | . 13 14 Storage 14 | . 14 14 Energy Gun 10 | . 3 16 Energy Cannon 9 | . 13 5 Launcher 2 | . . 4 Special Melee Weapon 4 | . 10 . Peak Build Rating 10 | 6 8 10 Average Rating 8 | 5 7 9 On Entrance 4 | . 6 8 Naked Turns . | . . . Heaviest Build 50 | 14 48 50 Greatest Support 20 | 20 20 20 Greatest Overweight (x) 14 | 1 2 14 Average Overweight (x) 1 | . . 2 Largest Inventory Capacity 20 | 8 20 20 Average Capacity 17 | 7 15 20 Most Carried 16 | 3 12 16 Average Carried 10 | 1 8 12 Final Capacity 20 | 8 20 20 Final Carried 12 | 2 12 10 Class Distribution -------------------- 100% | Mutant Dominant Class ---------------- Mutant | -10/Materials Mutant | -10/Subcaves Resources | -11 -10 -10 ----------- Run | Yrd Mat Sub Matter Collected 523 | 174 216 133 Remotely . | . . . Salvage Created 429 | . 315 114 Parts 30 | . 17 13 Haulers Intercepted . | . . . Recyclers Shooed . | . . . Parts Field Recycled . | . . . Retrieved Matter . | . . . Parts Self-Destructed 9 | . . 9 Prevented . | . . . Kills | -11 -10 -10 ------- Run | Yrd Mat Sub Combat Hostiles Destroyed 13 | . 7 6 Guns 5 | . 3 2 Cannons 5 | . 4 1 AOE 3 | . . 3 Classes Destroyed 5 | . 3 2 Turret 2 | . . 2 Watcher 2 | . 2 . Swarmer 6 | . 2 4 Grunt 5 | . 5 . Subdweller 2 | . . 2 Best Kill Streak 5 | . 4 5 Combat Bots Only 4 | . 4 4 Max Kills in Single Turn 2 | . 1 2 Gunslinging . | . . . Exploded 1 | . . 1 Melee . | . . . Uniques/NPCs Destroyed . | . . . Combat | -11 -10 -10 -------- Run | Yrd Mat Sub Hostile Shots Fired 154 | . 45 109 Missed 65 | . 21 44 Hits 89 | . 24 65 Projectile 89 | . 24 65 AOE 1 | . . 1 Damage Taken 1181 | . 276 905 Core 275 | . 56 219 Absorbed by Shields . | . . . Core Remaining (%) 100 | 100 . . Volleys Fired 55 | . 28 27 Largest 2 | . 2 2 Hottest 110 | . 110 100 Shots Fired 85 | . 42 43 Gun 38 | . 14 24 Cannon 34 | . 28 6 Launcher 9 | . . 9 Special 4 | . . 4 Kinetic . | . . . Thermal 65 | . 31 34 Explosive 9 | . . 9 Electromagnetic 11 | . 11 . Robot Hit Streak 14 | . 5 14 Robot Miss Streak 4 | . 3 4 Penetration Max . | . . . Secondary Targets . | . . . Shots Hit Robots 55 | . 30 25 Core Hits 28 | . 11 17 Critical Kills . | . . . Critical Parts Destroyed . | . . . Critical Strikes 1 | . . 1 Burn 1 | . . 1 Melee Attacks 2 | . 2 . Impact . | . . . Slashing . | . . . Piercing . | . . . Sneak Attacks 2 | . 2 . Combat Hostiles . | . . . Follow-up Attacks . | . . . Damage Inflicted 966 | . 451 515 Guns 269 | . 105 164 Cannons 398 | . 346 52 Explosions 290 | . . 290 Melee . | . . . Ramming 9 | . . 9 Kinetic . | . . . Thermal 574 | . 358 216 Explosive 290 | . . 290 Electromagnetic 93 | . 93 . Impact . | . . . Slashing . | . . . Piercing . | . . . Highest Corruption 4 | . . 4 Average Corruption 4 | . . 4 Corruption Purged . | . . . Corruption Blocked . | . . . Effects 22 | . . 22 Message Errors 6 | . . 6 Matter Fused 8 | . . 8 Heat Flow Errors 2 | . . 2 Data Loss (major) 2 | . . 2 Alerts 2 | . . 2 Weapon Failures 2 | . . 2 Overload Shots . | . . . Overflow Damage 19 | . 12 7 Projectiles 12 | . 12 . Explosions 7 | . . 7 Melee . | . . . Knockbacks . | . . . Impact . | . . . Kinetic . | . . . Secondary . | . . . Self-Inflicted Damage 100 | . . 100 Shots 3 | . . 3 Rammed . | . . . Targets Rammed . | . . . Kicked . | . . . Crushed . | . . . Highest Temperature 264 | . 264 121 Average Temperature 66 | . 72 29 Received Heat Transfer 462 | . 126 336 Siege Activations . | . . . Martial Activations . | . . . Shielding Activations . | . . . Robots Disrupted . | . . . Combat Hostiles . | . . . Robots Corrupted . | . . . Combat Hostiles . | . . . Parts Fried . | . . . Impact Corruptions . | . . . Robots Melted . | . . . Combat Hostiles . | . . . Parts Melted . | . . . Heat Transferred 1443 | . 777 666 Parts Sabotaged . | . . . Parts Stolen . | . . . Parts Stripped . | . . . Power Chain Reactions . | . . . Alert | -11 -10 -10 ------- Run | Yrd Mat Sub Maximum Alert Level . | . . . Low Security (%) 100 | 100 100 . Level 1 . | . . . Level 2 . | . . . Level 3 . | . . . Level 4 . | . . . Level 5 . | . . . High Security . | . . . Max Security . | . . . Peak Influence 96 | . 96 . Initial . | . . . Average 12 | . 13 . Influence Increases 395 | . 200 195 Destroy 0b10 Robot/C 260 | . 140 120 Destroy 0b10 Robot/NC 10 | . 10 . Destroy Leader 34 | . 34 . Destroy Structure 1 | . 1 . Lose Combat Pursuer 90 | . 15 75 Influence Decreases 395 | . 200 195 Time Decay 355 | . 190 165 Lost Part 40 | . 10 30 Squads Dispatched 1 | . 1 . Investigation 1 | . 1 . Extermination . | . . . Reinforcement . | . . . Assault . | . . . Garrison . | . . . Intercept . | . . . Searches Triggered . | . . . Construction Impeded . | . . . Haulers Reinforced . | . . . Active Scanning Responses . | . . . Cargo Convoy Interrupts . | . . . Stealth | -11 -10 -10 --------- Run | Yrd Mat Sub Distress Signals 1 | . 1 . Communications Jammed . | . . . Distress Signals . | . . . Times Spotted 27 | . 13 14 Peak Tracking Total 6 | . 6 5 Tactical Retreats 4 | . 1 3 Traps | -11 -10 -10 ------- Run | Yrd Mat Sub Traps Triggered 2 | . 2 . Indirectly . | . . . Trap Hack Attempts . | . . . Triggered . | . . . Disarmed . | . . . Reprogrammed . | . . . Reused . | . . . Traps Extracted . | . . . Installed . | . . . Triggered . | . . . Machines | -11 -10 -10 ---------- Run | Yrd Mat Sub Machines Disabled 4 | . . 4 Max in Single Turn 1 | . . 1 Machines Repaired . | . . . Machines Dismantled . | . . . Machines Sabotaged . | . . . Overloaded Fab Kills . | . . . Hacking | -11 -10 -10 --------- Run | Yrd Mat Sub Machines Accessed 3 | . 1 2 Terminals 1 | . 1 . Fabricators . | . . . Repair Stations . | . . . Recycling Units . | . . . Scanalyzers . | . . . Garrison Access . | . . . Total Hacks 14 | . 1 13 Successful 14 | . 1 13 Failed . | . . . Catastrophic . | . . . Database Lockouts . | . . . Manual 3 | . 2 1 Terminals 1 | . 1 . Fabricators . | . . . Repair Stations . | . . . Recycling Units . | . . . Scanalyzers . | . . . Garrison Access . | . . . Terminal Hacks 13 | . . 13 Record 12 | . . 12 Proto ID Catalog 1 | . . 1 Fabricator Hacks . | . . . Repair Station Hacks . | . . . Recycling Unit Hacks . | . . . Scanalyzer . | . . . Garrison Access Hacks . | . . . Unauthorized Hacks 1 | . 1 . Terminals 1 | . 1 . Botnet 1 | . 1 . Fabricators . | . . . Repair Stations . | . . . Recycling Units . | . . . Scanalyzers . | . . . Garrison Access . | . . . Data Cores Recovered . | . . . Used . | . . . Hacking Detections 1 | . 1 . Full Trace Events . | . . . Feedback Events . | . . . Feedback Blocked . | . . . Robot Schematics Acquired . | . . . Robots Built . | . . . Authchips . | . . . Time . | . . . Total Robot Build Rating . | . . . Part Schematics Acquired . | . . . Parts Built . | . . . Authchips . | . . . Time . | . . . Total Part Build Rating . | . . . Parts Repaired . | . . . Time . | . . . Parts Recycled . | . . . Recycled Matter . | . . . Retrieved Matter . | . . . Retrieved Components . | . . . Parts Scanalyzed . | . . . Part Schematics Acquired . | . . . Parts Damaged . | . . . Bothacking | -11 -10 -10 ------------ Run | Yrd Mat Sub Used RIF Installer . | . . . Robots Hacked 1 | . 1 . Non-combat 1 | . 1 . Combat . | . . . Robot Hacks Applied 1 | . 1 . no_distress 1 | . 1 . Relay Couplers Released . | . . . Fabnet Peak Effective % . | . . . Robots Rewired . | . . . Allies Hacked . | . . . Hacks Repelled . | . . . Allies | -11 -10 -10 -------- Run | Yrd Mat Sub Total Allies . | . . . Largest Group . | . . . Highest-Rated Group . | . . . Highest-Rated Ally . | . . . Total Orders . | . . . Ally Attacks . | . . . Total Damage . | . . . Kills . | . . . Allies Corrupted . | . . . Allies Melted . | . . . Intel | -11 -10 -10 ------- Run | Yrd Mat Sub Active Infowar (turns) 2733 | . 1107 1626 Structural 2733 | . 1107 1626 Robot Analysis Total . | . . . Derelict Logs Recovered 1 | . . 1 Drone Launches . | . . . Drone Recoveries . | . . . Exploration | -11 -10 -10 ------------- Run | Yrd Mat Sub Turns Passed 2856 | 73 1157 1626 Spaces Moved 1156 | 52 545 559 Core 8 | 7 . 1 Treads . | . . . Legs 1148 | 45 545 558 Wheels . | . . . Hover . | . . . Flight . | . . . Fastest Speed 50 | 50 120 260 Average Speed 217 | 113 182 260 Slowest Speed 750 | 120 260 750 Overloaded Moves . | . . . Propulsion Burnouts . | . . . Robots Hopped . | . . . Potential Cave-ins . | . . . Cave-ins Triggered . | . . . Exploration Rate (%) 36 | 3 72 33 Regions Visited 2 Branch Regions 1 Pre-discovered Areas . | . . . Known Exits Taken . | . . . Unknown Exits Taken 2 | 1 1 . Scrap Searched . | . . . Spaces Dug . | . . . Terrain Destroyed 30 | . . 30 Melee . | . . . Projectile . | . . . AOE 30 | . . 30 Terrain Rammed 1 | . . 1 Walls Destroyed . | . . . Machines Disabled . | . . . Actions | -11 -10 -10 --------- Run | Yrd Mat Sub Total 1403 | 63 666 674 Wait 132 | . 64 68 Move 1154 | 51 544 559 Hop . | . . . Pick Up 13 | 1 11 1 Fast Attach 9 | 6 2 1 Attach 17 | 2 6 9 Detach 11 | 2 5 4 Swap 3 | 1 2 . Drop 2 | . 2 . Fire 55 | . 28 27 Melee 2 | . 2 . Ram 1 | . . 1 Kick . | . . . Crush . | . . . Escape Stasis . | . . . Rewire 4 | . . 4 Trap . | . . . Miscellaneous . | . . . Route ------- -11/Scrapyard -10/Materials (discovered 4 exits: [*Mat x2] / [*Min] / *Sub) -10/Subcaves (discovered 1 exit: [*Rec]) History --------- Turn | Location | Event 2 | -11/Scrapyard | Met Revision 17 7 | -11/Scrapyard | Discovered new exit (range 15) 74 | -11/Scrapyard | Entered Materials 351 | -10/Materials | Build established: Mutant 362 | -10/Materials | Discovered new exit (range 12) 711 | -10/Materials | Discovered new exit (range 14) 760 | -10/Materials | Discovered new exit (range 7) 1011 | -10/Materials | Discovered new exit (range 12) 1231 | -10/Materials | Entered Subcaves 1247 | -10/Subcaves | Learned 2 Materials zone layouts 1339 | -10/Subcaves | Visited 4L-MR0's lab 1643 | -10/Subcaves | Found Arachnoskeleton 1874 | -10/Subcaves | Discovered new exit (range 14) 1943 | -10/Subcaves | Lost 3 parts (1p2w) 2450 | -10/Subcaves | Visited Clippyterm 2458 | -10/Subcaves | Learned Research machine intel 2629 | -10/Subcaves | Core integrity fell below 50% 2669 | -10/Subcaves | Lost 3 parts (1p2n) 2840 | -10/Subcaves | Core integrity fell below 20% 2857 | -10/Subcaves | Destroyed by YE-IVI(R) with Subdweller Beam Cannon Last Messages --------------- 02620_ System corrupted: Matter fused (-5). 02626_ Aluminum Leg destroyed. 02630_ TG-WRA(R) destroyed. 02633_ Subatomizers dissect the Sub. Power Source. 02637_ IY-5EN(R) affixes Scrap Shield Fragment to Scrap Shield. 02638_ Lgt. Ion Engine destroyed. 02638_ Aluminum Leg destroyed. 02639_ IY-5EN(R) destroyed. 02643_ Subatomizers dissect the Sub. Power Source. 02651_ 8YB&UNV6LP3OHNBX9VZ:3Z8EZWVTU%0CWHJG/7LL 02658_ Subatomizers dissect the Sub. Power Source. 02659_ Acquired 36 matter. 02664_ Acquired 60 matter. 02669_ Subatomizers dissect the Sub. Power Source. 02695_ Acquired Sub. Power Source. 02706_ Subatomizers dissect the Sub. Optics. 02726_ System corrupted: Heat flow error (+156). 02820_ MTRIN%FUDJOE#QAKIK1RG0TMSL0E:SMGI=DQG&B 02851_ Sub. Power Source destroyed. 02855_ OG-6H4(R) suffers critical hit (Burn). Map ----- +----------------------------------------------------+ | ?????????????????????????????????????????????????? | | ?????????????????????????????????????????????????? | | ?????????????????????????????????????????????????? | | ?????????????????????????????????????????????????? | | ?????????????????????????????????????????????????? | | ?????????????????????????????????????????????????? | | ?????????????????????????????????????????????????? | | ?????????????????????????????????????????????????? | | ?????????????????????????????????????????????????? | | ?????????????????????????????????????????????????? | | ?????????????????????????????????????????????????? | | ???????????????????? ? ??????????????????????????? | | ?????????????????? ""??????????????????????????? | | ????????????????? #""""##???????????????????????? | | ????????????????" ##" "###???????????????????????? | | ?????????????????""# "" # ???????????????????????? | | ?????????????????? " ???????????????????????? | | ??????????????????? "" $ ???????????????????????? | | ????????????????????" ##???????????????????????? | | ????????????????????## #####????????????????????? | | ?????????????????##### #####????????????????????? | | ?????????????????"#""# # ##### ????????????????? | | ???????????????"" """" RR #######???????????????? | | ???????????????## # ## " ## ###???????????????? | | ???????????????######## # ## ### ?????????????? | | ????????????????????#####@ ## #### ????????????? | | #### ????????????????### ; ###????????????? | | ### ??????#####??????### ##????????????? | | ? ########??????### ##????????????? | | ###### ##??????### ## ##????????????? | | #### ##?????#### ### ###???????????? | | #### ###????#### ###? ##???????????? | | #### ###????### ## ?####???????????? | | ??### #####?????## ########???????????? | | ????## #####?####### ## ####??????????????? | | ???## ################## ###??????????????? | | #???### ######## ########## ##??????????????? | | ####### """#### ##### ### ##??????????????? | | ######" ##### #### ### ##??????????????? | | ### """ "#### ### ### ##??????????????? | | ### ##### ## ##??????????????? | | "#### ##??????????????? | | """ "## ##??????????????? | | ## "" ### ## ##??????????????? | | #### # &&&&##### #### ##??????????????? | | # ###### & & ###### ### ##??????????????? | | # ######## !&& !###### #### ##??????????????? | | #####??### ### #### #########??????????????? | | ####????####### #############??????????????? | | ###?????####### ######?????????????????????? | +----------------------------------------------------+ Best States ------------- Heat Dissipation 25 Energy Generation 15 Energy Capacity 250 Matter Stores 300 Matter Capacity 300 Sight Range 16 Terrain Scan Density 10 Evasion (%) 55 Item Schematics ----------------- None Robot Schematics ------------------ None Fabricated ------------ Nothing Repaired ---------- Nothing Alien Tech Used ----------------- None Achievements -------------- None Challenges ------------ None Game ------ Seed DirectedScrapBasin Manual? 0 Play Time 00:21:35 Cumulative 23.8 hours Start 2025.05.07 @ 20:19:33 End 2025.05.07 @ 20:39:54 Sessions 1 Manual Loads 0 Difficulty Rogue Special Mode None Game No. 49 Rogue 49 Adventurer 0 Explorer 0 Win Type - Total 0 Types 0/0/0/0/0/0/0/0/0/0 Lore% 10 Gallery% 13 Achievement% 16 Wizard Run 0 Options --------- Layout 0 ASCII 0 Keyboard 1 Movement Numpad Keybinds 0 Fullscreen 1 Font 24/Smallcaps Map View 76x50 Zoom Use 0% Tactical HUD 1 Map Filters NONE Filters NONE Steam 1 RUN: 44123866-686d-4882-9df9-846308a51805